fUST/lending_fUST_20241230
["ID","MTS","AMOUNT","RATE_DAILY","PERIOD"]
[347205713,1735572643336,-500.0,0.00011569,2]
[347205715,1735572643346,-500.0,0.00011569,2]
[347205717,1735572643355,-314.12846196,0.00011569,2]
[347205719,1735572643364,-500.0,0.00011569,2]
[347205721,1735572643374,-500.0,0.00011569,2]
[347205723,1735572643383,-2313.07,0.00011569,2]
[347205725,1735572643392,-500.0,0.00011569,2]
[347205728,1735572643402,-250.0,0.0001157,2]
[347205730,1735572643412,-500.0,0.0001157,2]
[347205732,1735572643421,-500.0,0.0001157,2]
[347205734,1735572643430,-500.0,0.0001157,2]
[347205736,1735572643439,-500.0,0.0001157,2]
[347205738,1735572643448,-500.0,0.0001157,2]
[347205740,1735572643458,-1984.79,0.0001157,2]
[347205742,1735572643468,-500.0,0.00011573,2]
[347205744,1735572643477,-500.0,0.0001158,2]
[347205746,1735572643485,-210.75,0.0001178,2]
[347205747,1735572643495,-500.0,0.0001178,2]
[347205749,1735572643504,-500.0,0.0001178,2]
[347205751,1735572643516,-500.0,0.0001178,2]
[347205753,1735572643525,-567.57622793,0.0001178,2]
[347205755,1735572643535,-500.0,0.0001178,2]
[347205757,1735572643544,-477.55,0.0001178,2]
[347205759,1735572643553,-500.0,0.0001178,2]
[347205762,1735572643563,-500.0,0.0001178,2]
[347205763,1735572643572,-506.37409631,0.0001178,2]
[347205765,1735572643581,-500.0,0.0001178,2]
[347205767,1735572643590,-6171.08,0.0001178,2]
[347205769,1735572643599,-500.0,0.0001178,2]
[347205771,1735572643609,-500.0,0.0001178,2]
[347205773,1735572643618,-500.0,0.0001178,2]
[347205774,1735572643628,-500.0,0.0001178,2]
[347205776,1735572643637,-500.0,0.0001178,2]
[347205777,1735572643646,-500.0,0.0001178,2]
[347205778,1735572643656,-500.0,0.0001178,2]
[347205779,1735572643665,-500.0,0.0001178,2]
[347205780,1735572643674,-500.0,0.0001178,2]
[347205781,1735572643683,-500.0,0.0001178,2]
[347205782,1735572643692,-848.59,0.0001178,2]
[347205783,1735572643702,-500.0,0.0001178,2]
[347205784,1735572643711,-508.56608196,0.0001178,2]
[347205785,1735572643720,-500.0,0.0001178,2]
[347205786,1735572643730,-633.3,0.0001178,2]
[347205787,1735572643739,-500.0,0.0001178,2]
[347205788,1735572643748,-500.0,0.0001178,2]
[347205789,1735572643764,-500.0,0.0001178,2]
[347205790,1735572643774,-500.0,0.0001178,2]
[347205791,1735572643783,-500.0,0.0001178,2]
[347205792,1735572643792,-553.02,0.0001178,2]
[347205793,1735572643802,-295.51695442,0.0001178,2]
[347205794,1735572643811,-630.74,0.0001178,2]
[347205795,1735572643820,-500.0,0.0001178,2]
[347205796,1735572643829,-500.0,0.0001178,2]
[347205797,1735572643839,-500.0,0.0001178,2]
[347205798,1735572643848,-162.03418548,0.0001178,2]
[347205799,1735572643858,-182.43414869,0.0001178,2]
[347205800,1735572643868,-500.0,0.0001178,2]
[347205801,1735572643877,-500.0,0.0001178,2]
[347205802,1735572643886,-500.0,0.0001178,2]
[347205803,1735572643896,-500.0,0.0001178,2]
[347205804,1735572643905,-500.0,0.0001178,2]
[347205805,1735572643915,-187.66425183,0.00011821,2]
[347205806,1735572643924,-1000.0,0.00011821,2]
[347205807,1735572643933,-500.0,0.00011821,2]
[347205808,1735572643943,-1000.0,0.00011821,2]
[347205809,1735572643953,-1000.0,0.00011821,2]
[347205810,1735572643962,-500.58599813,0.00011821,2]
[347205811,1735572643972,-985.82,0.00011841,2]
[347205812,1735572643981,-500.0,0.00011842,2]
[347205813,1735572643991,-500.0,0.00011842,2]
[347205814,1735572644001,-500.0,0.00011842,2]
[347205815,1735572644011,-500.0,0.00011842,2]
[347205816,1735572644022,-500.0,0.00011842,2]
[347205817,1735572644033,-500.0,0.00011842,2]
[347205818,1735572644043,-500.0,0.00011842,2]
[347205819,1735572644052,-500.0,0.00011842,2]
[347205820,1735572644062,-500.0,0.00011842,2]
[347205821,1735572644072,-500.0,0.00011842,2]
[347205822,1735572644082,-500.0,0.00011842,2]
[347205823,1735572644091,-500.0,0.00011842,2]
[347205824,1735572644101,-500.0,0.00011842,2]
[347205825,1735572644111,-500.0,0.00011842,2]
[347205826,1735572644121,-500.0,0.00011842,2]
[347205827,1735572644130,-500.0,0.00011842,2]
[347205828,1735572644140,-500.0,0.00011842,2]
[347205829,1735572644149,-500.0,0.00011842,2]
[347205830,1735572644159,-500.0,0.00011842,2]
[347205831,1735572644168,-837.6,0.00011842,2]
[347205832,1735572644177,-500.0,0.00011842,2]
[347205833,1735572644189,-500.0,0.00011842,2]
[347205834,1735572644199,-500.0,0.00011842,2]
[347205835,1735572644209,-500.0,0.00011842,2]
[347205836,1735572644218,-500.0,0.00011842,2]
[347205837,1735572644228,-1891.72,0.00011842,2]
[347205838,1735572644237,-500.0,0.00011842,2]
[347205839,1735572644247,-500.0,0.00011843,2]
[347205840,1735572644256,-500.0,0.00011843,2]
[347205841,1735572644267,-504.60516021,0.00011843,2]
[347205842,1735572644277,-154.75,0.00011843,2]
[347205843,1735572644286,-500.0,0.00011843,2]
[347205844,1735572644296,-500.0,0.00011843,2]
[347205845,1735572644305,-500.0,0.00011843,2]
[347205846,1735572644315,-500.0,0.00011843,2]
[347205847,1735572644324,-388.9115591,0.00011843,2]
[347205848,1735572644334,-500.0,0.00011843,2]
[347205849,1735572644343,-500.0,0.00011843,2]
[347205850,1735572644352,-509.13395835,0.00011843,2]
[347205851,1735572644362,-500.0,0.00011843,2]
[347205852,1735572644371,-500.0,0.00011843,2]
[347205853,1735572644380,-509.79478455,0.00011843,2]
[347205854,1735572644390,-507.7868198,0.00011843,2]
[347205855,1735572644399,-500.0,0.00011843,2]
[347205856,1735572644409,-500.0,0.00011843,2]
[347205857,1735572644418,-500.0,0.00011843,2]
[347205858,1735572644427,-500.0,0.00011843,2]
[347205859,1735572644437,-500.0,0.00011843,2]
[347205860,1735572644447,-500.0,0.00011843,2]
[347205861,1735572644457,-495.0,0.00011843,2]
[347205862,1735572644526,-500.0,0.00011843,2]
[347205863,1735572644535,-500.0,0.00011843,2]
[347205864,1735572644545,-500.0,0.00011843,2]
[347205865,1735572644554,-500.0,0.00011843,2]
[347205866,1735572644563,-441.77272864,0.00011843,2]
[347205867,1735572644573,-500.0,0.00011843,2]
[347205868,1735572644583,-568.66056513,0.00011843,2]
[347205869,1735572644593,-500.0,0.00011843,2]
[347205870,1735572644603,-500.0,0.00011843,2]
[347205871,1735572644613,-500.0,0.00011843,2]
[347205872,1735572644622,-500.0,0.00011843,2]
[347205873,1735572644632,-2313.07,0.00011843,2]
[347205874,1735572644641,-500.0,0.00011843,2]
[347205875,1735572644651,-500.0,0.00011844,2]
[347205876,1735572644660,-500.0,0.00011844,2]
[347205877,1735572644670,-1984.79,0.00011844,2]
[347205878,1735572644679,-625.26912911,0.0001198,2]
[347205879,1735572644689,-1000.0,0.00012,3]
[347205880,1735572644698,-605.1135126,0.00012054,2]
[347205881,1735572644708,-500.0,0.00012054,2]
[347205882,1735572644718,-500.0,0.00012054,2]
[347205883,1735572644727,-500.0,0.00012054,2]
[347205884,1735572644736,-450.48015,0.00012054,2]
[347205885,1735572644746,-500.0,0.00012054,2]
[347205886,1735572644755,-618.68,0.00012054,2]
[347205887,1735572644766,-6171.08,0.00012054,2]
[347205888,1735572644777,-500.0,0.00012054,2]
[347205889,1735572644786,-500.0,0.00012054,2]
[347205890,1735572644795,-500.0,0.00012054,2]
[347205891,1735572644805,-500.0,0.00012054,2]
[347205892,1735572644815,-500.0,0.00012054,2]
[347205893,1735572644825,-500.0,0.00012054,2]
[347205894,1735572644835,-500.0,0.00012054,2]
[347205895,1735572644845,-500.0,0.00012054,2]
[347205896,1735572644854,-572.22,0.00012054,2]
[347205897,1735572644864,-848.59,0.00012054,2]
[347205898,1735572644873,-500.0,0.00012054,2]
[347205899,1735572644882,-243.75782681,0.00012054,2]
[347205900,1735572644892,-500.0,0.00012054,2]
[347205901,1735572644902,-500.0,0.00012054,2]
[347205902,1735572644912,-500.0,0.00012054,2]
[347205903,1735572644921,-281.33122712,0.00012054,2]
[347205904,1735572644931,-553.02,0.00012054,2]
[347205905,1735572644941,-630.74,0.00012054,2]
[347205906,1735572644951,-509.44854795,0.00012054,2]
[347205907,1735572644961,-644.24214717,0.00012054,2]
[347205908,1735572644971,-500.0,0.00012054,2]
[347205909,1735572644981,-500.0,0.00012054,2]
[347205910,1735572644990,-500.0,0.00012054,2]
[347205911,1735572645000,-458.43358099,0.00012054,2]
[347205912,1735572645011,-500.0,0.00012054,2]
[347205913,1735572645021,-500.0,0.00012054,2]
[347205914,1735572645033,-500.0,0.00012115,2]
[347205915,1735572645043,-985.82,0.00012115,2]
[347205916,1735572645052,-265.37,0.00012116,2]
[347205917,1735572645062,-500.0,0.00012116,2]
[347205918,1735572645073,-500.0,0.00012116,2]
[347205919,1735572645082,-500.0,0.00012116,2]
[347205920,1735572645092,-640.33,0.00012116,2]
[347205921,1735572645102,-500.0,0.00012116,2]
[347205922,1735572645111,-500.0,0.00012116,2]
[347205923,1735572645121,-503.40381298,0.00012116,2]
[347205924,1735572645131,-837.6,0.00012116,2]
[347205925,1735572645140,-500.0,0.00012116,2]
[347205926,1735572645150,-1891.72,0.00012116,2]
[347205927,1735572645159,-500.0,0.00012116,2]
[347205928,1735572645169,-504.02993081,0.00012117,2]
[347205929,1735572645178,-503.34563675,0.00012117,2]
[347205930,1735572645187,-612.3071788,0.00012117,2]
[347205931,1735572645197,-500.0,0.00012117,2]
[347205932,1735572645206,-500.0,0.00012117,2]
[347205933,1735572645215,-334.69836905,0.00012117,2]
[347205934,1735572645225,-503.65668775,0.00012117,2]
[347205935,1735572645234,-500.0,0.00012117,2]
[347205936,1735572645244,-500.0,0.00012117,2]
[347205937,1735572645253,-500.0,0.00012117,2]
[347205938,1735572645263,-500.0,0.00012117,2]
[347205939,1735572645272,-2313.07,0.00012117,2]
[347205940,1735572645281,-500.0,0.00012117,2]
[347205941,1735572645291,-500.0,0.00012118,2]
[347205942,1735572645300,-173.52,0.00012118,2]
[347205943,1735572645310,-1984.79,0.00012118,2]
[347205944,1735572645319,-500.0,0.00012328,2]
[347205946,1735572645329,-647.38,0.00012328,2]
[347205948,1735572645338,-500.0,0.00012328,2]
[347205949,1735572645348,-6171.08,0.00012328,2]
[347205950,1735572645357,-500.0,0.00012328,2]
[347205951,1735572645366,-500.0,0.00012328,2]
[347205952,1735572645375,-500.0,0.00012328,2]
[347205953,1735572645384,-500.0,0.00012328,2]
[347205954,1735572645393,-500.0,0.00012328,2]
[347205956,1735572645403,-848.59,0.00012328,2]
[347205958,1735572645415,-500.0,0.00012328,2]
[347205960,1735572645424,-500.0,0.00012328,2]
[347205961,1735572645433,-500.0,0.00012328,2]
[347205962,1735572645442,-500.0,0.00012328,2]
[347205963,1735572645452,-553.02,0.00012328,2]
[347205964,1735572645461,-630.74,0.00012328,2]
[347205965,1735572645470,-500.0,0.00012328,2]
[347205966,1735572645479,-543.70831996,0.00012328,2]
[347205967,1735572645489,-500.0,0.00012328,2]
[347205968,1735572645498,-500.0,0.00012389,2]
[347205969,1735572645507,-183.42515341,0.0001239,2]
[347205970,1735572645518,-500.0,0.0001239,2]
[347205971,1735572645527,-500.0,0.0001239,2]
[347205972,1735572645537,-500.0,0.0001239,2]
[347205973,1735572645546,-500.0,0.0001239,2]
[347205975,1735572645556,-837.6,0.0001239,2]
[347205977,1735572645565,-500.0,0.0001239,2]
[347205979,1735572645574,-1891.72,0.0001239,2]
[347205980,1735572645584,-500.0,0.0001239,2]
[347205981,1735572645592,-500.0,0.00012391,2]
[347205982,1735572645603,-500.0,0.00012391,2]
[347205984,1735572645612,-429.0696,0.00012391,2]
[347205985,1735572645621,-500.0,0.00012391,2]
[347205986,1735572645631,-2313.07,0.00012391,2]
[347205987,1735572645640,-500.0,0.00012391,2]
[347205988,1735572645650,-500.0,0.00012392,2]
[347205989,1735572645659,-1984.79,0.00012392,2]
[347205990,1735572645668,-625.26912911,0.00012502,2]
[347205991,1735572645678,-500.0,0.00012598,2]
[347205992,1735572645687,-500.0,0.00012602,2]
[347205994,1735572645697,-625.0,0.00012602,2]
[347205995,1735572645706,-6171.08,0.00012602,2]
[347205997,1735572645715,-500.0,0.00012602,2]
[347205999,1735572645725,-500.0,0.00012602,2]
[347206001,1735572645734,-500.0,0.00012602,2]
[347206002,1735572645743,-500.0,0.00012602,2]
[347206003,1735572645810,-500.0,0.00012602,2]
[347206004,1735572645820,-848.59,0.00012602,2]
[347206005,1735572645829,-199.16384733,0.00012602,2]
[347206007,1735572645839,-500.0,0.00012602,2]
[347206009,1735572645849,-368.83,0.00012602,2]
[347206011,1735572645858,-500.0,0.00012602,2]
[347206013,1735572645867,-553.02,0.00012602,2]
[347206014,1735572645877,-630.74,0.00012602,2]
[347206016,1735572645887,-500.0,0.00012602,2]
[347206017,1735572645896,-500.0,0.00012602,2]
[347206018,1735572645905,-985.82,0.00012663,2]
[347206019,1735572645914,-218.6603726,0.00012664,2]
[347206020,1735572645924,-500.0,0.00012664,2]
[347206021,1735572645934,-500.0,0.00012664,2]
[347206022,1735572645943,-500.0,0.00012664,2]
[347206023,1735572645953,-837.6,0.00012664,2]
[347206024,1735572645963,-232.4,0.00012664,2]
[347206025,1735572645974,-1891.72,0.00012664,2]
[347206026,1735572645983,-185.57495815,0.00012665,2]
[347206027,1735572645994,-500.0,0.00012665,2]
[347206028,1735572646004,-500.0,0.00012665,2]
[347206029,1735572646015,-2313.07,0.00012665,2]
[347206030,1735572646025,-500.0,0.00012666,2]
[347206031,1735572646036,-1984.79,0.00012666,2]
[347206032,1735572646045,-587.0,0.000127,2]
[347206033,1735572646054,-151.0,0.000128,2]
[347206034,1735572646064,-500.0,0.00012822,2]
[347206035,1735572646074,-1002.31100259,0.00012822,2]
[347206036,1735572646083,-6171.08,0.00012876,2]
[347206037,1735572646093,-500.0,0.00012876,2]
[347206038,1735572646105,-500.0,0.00012876,2]
[347206039,1735572646115,-500.0,0.00012876,2]
[347206040,1735572646124,-500.0,0.00012876,2]
[347206041,1735572646134,-500.0,0.00012876,2]
[347206042,1735572646144,-848.59,0.00012876,2]
[347206043,1735572646154,-500.0,0.00012876,2]
[347206044,1735572646163,-208.822192,0.00012876,2]
[347206045,1735572646172,-553.02,0.00012876,2]
[347206046,1735572646183,-630.74,0.00012876,2]
[347206047,1735572646192,-500.0,0.00012876,2]
[347206048,1735572646201,-500.0,0.00012876,2]
[347206049,1735572646211,-1013.43948352,0.000129,2]
[347206050,1735572646220,-500.0,0.00012938,2]
[347206051,1735572646229,-500.0,0.00012938,2]
[347206052,1735572646238,-500.0,0.00012938,2]
[347206053,1735572646247,-837.6,0.00012938,2]
[347206054,1735572646257,-1891.72,0.00012938,2]
[347206055,1735572646268,-500.0,0.00012939,2]
[347206056,1735572646278,-500.0,0.00012939,2]
[347206057,1735572646287,-2313.07,0.00012939,2]
[347206058,1735572646297,-500.0,0.0001294,2]
[347206059,1735572646306,-1984.79,0.0001294,2]
[347206060,1735572646315,-6379.81938228,0.00013,2]
[347206061,1735572646324,-116365.72489514,0.00013,2]
[347206062,1735572646334,-1000.0,0.00013,4]
[347206063,1735572646343,-511296.0,0.00013,2]
[347206064,1735572646352,-151.0,0.00013,2]
[347206065,1735572646362,-154.338824,0.00013,2]
[347206066,1735572646371,-2728.78868034,0.0001305,2]
[347206067,1735572646380,-6171.08,0.0001315,2]
[347206068,1735572646389,-500.0,0.0001315,2]
[347206069,1735572646399,-500.0,0.0001315,2]
[347206070,1735572646408,-500.0,0.0001315,2]
[347206071,1735572646417,-500.0,0.0001315,2]
[347206072,1735572646427,-500.0,0.0001315,2]
[347206073,1735572646436,-848.59,0.0001315,2]
[347206074,1735572646446,-312.89158636,0.0001315,2]
[347206075,1735572646455,-553.02,0.0001315,2]
[347206076,1735572646464,-630.74,0.0001315,2]
[347206077,1735572646474,-500.0,0.0001315,2]
[347206078,1735572646483,-500.0,0.0001315,2]
[347206079,1735572646492,-500.0,0.00013212,2]
[347206080,1735572646501,-500.0,0.00013212,2]
[347206081,1735572646512,-985.82,0.00013212,2]
[347206082,1735572646522,-363.34,0.00013212,2]
[347206083,1735572646531,-837.6,0.00013212,2]
[347206084,1735572646541,-1891.72,0.00013212,2]
[347206085,1735572646550,-500.0,0.00013213,2]
[347206086,1735572646560,-500.0,0.00013213,2]
[347206087,1735572646569,-500.0,0.00013213,2]
[347206088,1735572646579,-2313.07,0.00013213,2]
[347206089,1735572646588,-500.0,0.00013214,2]
[347206090,1735572646597,-1984.79,0.00013214,2]
[347206091,1735572646607,-806.878,0.000133,2]
[347206092,1735572646616,-6171.08,0.00013424,2]
[347206093,1735572646625,-500.0,0.00013424,2]
[347206094,1735572646635,-500.0,0.00013424,2]
[347206095,1735572646644,-500.0,0.00013424,2]
[347206096,1735572646653,-500.0,0.00013424,2]
[347206097,1735572646663,-500.0,0.00013424,2]
[347206098,1735572646672,-848.59,0.00013424,2]
[347206099,1735572646682,-553.02,0.00013424,2]
[347206100,1735572646691,-630.74,0.00013424,2]
[347206101,1735572646700,-541.1928834,0.00013424,2]
[347206102,1735572646709,-500.0,0.00013424,2]
[347206103,1735572646718,-549.52495405,0.00013486,2]
[347206104,1735572646727,-500.0,0.00013486,2]
[347206105,1735572646737,-837.6,0.00013486,2]
[347206106,1735572646746,-1891.72,0.00013486,2]
[347206107,1735572646755,-509.72899049,0.00013487,2]
[347206108,1735572646776,-510.88272347,0.00013487,2]
[347206109,1735572646785,-2313.07,0.00013487,2]
[347206110,1735572646795,-500.0,0.00013488,2]
[347206111,1735572646804,-1984.79,0.00013488,2]
[347206112,1735572646814,-7778.1745129,0.00013604,2]
[347206113,1735572646824,-500.0,0.00013698,2]
[347206114,1735572646834,-500.0,0.00013698,2]
[347206115,1735572646844,-500.0,0.00013698,2]
[347206116,1735572646853,-500.0,0.00013698,2]
[347206117,1735572646863,-500.0,0.00013698,2]
[347206118,1735572646872,-1000.0,0.00013698,2]
[347206119,1735572646882,-6171.08,0.00013698,2]
[347206120,1735572646892,-500.0,0.00013698,2]
[347206121,1735572646901,-614.85178457,0.00013698,2]
[347206122,1735572646911,-500.0,0.00013698,2]
[347206123,1735572646921,-500.0,0.00013698,2]
[347206124,1735572646931,-239.12353024,0.00013698,2]
[347206125,1735572647001,-848.59,0.00013698,2]
[347206126,1735572647013,-553.02,0.00013698,2]
[347206127,1735572647023,-630.74,0.00013698,2]
[347206128,1735572647033,-500.0,0.00013698,2]
[347206129,1735572647045,-424.477737,0.00013699,2]
[347206130,1735572647055,-195.3591522,0.00013699,2]
[347206131,1735572647064,-200.39900315,0.00013699,2]
[347206132,1735572647074,-500.0,0.00013699,2]
[347206133,1735572647085,-275.59646694,0.00013699,2]
[347206134,1735572647094,-500.0,0.00013699,2]
[347206135,1735572647104,-610.66040754,0.00013699,2]
[347206136,1735572647114,-306.7351499,0.00013699,2]
[347206137,1735572647124,-214.1393056,0.00013699,2]
[347206138,1735572647135,-500.0,0.00013699,2]
[347206139,1735572647144,-500.0,0.00013699,2]
[347206140,1735572647154,-500.0,0.00013699,2]
[347206141,1735572647164,-500.0,0.00013699,2]
[347206142,1735572647173,-500.0,0.00013699,2]
[347206143,1735572647183,-500.0,0.00013699,2]
[347206144,1735572647193,-500.0,0.00013699,2]
[347206145,1735572647202,-240.42325262,0.00013699,2]
[347206146,1735572647212,-500.0,0.00013699,2]
[347206147,1735572647221,-500.0,0.00013699,2]
[347206148,1735572647231,-500.0,0.00013699,2]
[347206149,1735572647240,-500.0,0.00013699,2]
[347206150,1735572647250,-500.0,0.00013699,2]
[347206151,1735572647259,-500.0,0.00013699,2]
[347206152,1735572647269,-500.0,0.00013699,2]
[347206153,1735572647279,-500.0,0.00013699,2]
[347206154,1735572647288,-985.82,0.00013759,2]
[347206155,1735572647298,-332.12,0.0001376,2]
[347206156,1735572647306,-837.6,0.0001376,2]
[347206157,1735572647316,-1891.72,0.0001376,2]
[347206158,1735572647326,-2313.07,0.00013761,2]
[347206159,1735572647335,-500.0,0.00013762,2]
[347206160,1735572647344,-1984.79,0.00013762,2]
[347206161,1735572647354,-151.0,0.000138,2]
[347206162,1735572647364,-252.692959,0.00013859,2]
[347206163,1735572647373,-579.823,0.00013877,2]
[347206164,1735572647383,-201.78563676,0.00013879,2]
[347206165,1735572647392,-10579.55317666,0.00013906,2]
[347206166,1735572647402,-2728.78868025,0.00013955,2]
[347206167,1735572647411,-823.0,0.00013963,2]
[347206168,1735572647420,-6171.08,0.00013972,2]
[347206169,1735572647430,-500.0,0.00013972,2]
[347206170,1735572647439,-500.0,0.00013972,2]
[347206171,1735572647448,-500.0,0.00013972,2]
[347206172,1735572647458,-848.59,0.00013972,2]
[347206173,1735572647467,-553.02,0.00013972,2]
[347206174,1735572647476,-630.74,0.00013972,2]
[347206175,1735572647485,-500.0,0.00013972,2]
[347206176,1735572647494,-601.99541837,0.00013973,2]
[347206177,1735572647503,-500.0,0.00013973,2]
[347206178,1735572647513,-500.0,0.00013973,2]
[347206179,1735572647522,-400.0,0.00013973,2]
[347206180,1735572647532,-985.82,0.00013999,2]
[347206181,1735572647541,-985.82,0.00013999,2]
[347206182,1735572647550,-985.82,0.00013999,2]
[347206183,1735572647560,-985.82,0.00013999,2]
[347206184,1735572647570,-985.82,0.00013999,2]
[347206185,1735572647579,-985.82,0.00013999,2]
[347206186,1735572647588,-985.82,0.00013999,2]
[347206187,1735572647597,-985.82,0.00013999,2]
[347206188,1735572647607,-985.82,0.00013999,2]
[347206189,1735572647616,-985.82,0.00013999,2]
[347206190,1735572647626,-985.82,0.00013999,2]
[347206191,1735572647635,-985.82,0.00013999,2]
[347206192,1735572647644,-985.82,0.00013999,2]
[347206193,1735572647653,-985.82,0.00013999,2]
[347206194,1735572647663,-985.88734625,0.00013999,2]
[347206195,1735572647672,-160.0,0.00013999,2]
[347206196,1735572647683,-954315.08673245,0.00014,2]
[347206197,1735572647813,-500.0,0.00012328,2]
[347206198,1735572647823,-553.66639836,0.00012328,2]
[347206199,1735572647832,-242.07088875,0.00012602,2]
[347206200,1735572647844,-257.92911125,0.00012602,2]
[347206201,1735572647854,-500.0,0.00012664,2]
[347206202,1735572647863,-622.07088825,0.00014,2]
[347206203,1735572647875,-1446.2725006,0.00014,2]
[347206204,1735572648033,-273.010509,0.00011506,2]
[347206205,1735572648119,-500.0,0.00010958,2]
[347206206,1735572648132,-500.0,0.00010958,2]
[347206207,1735572648143,-500.0,0.00011232,2]
[347206208,1735572648153,-226.989491,0.00011506,2]
[347206209,1735572648162,-500.0,0.00012876,2]
[347206210,1735572648173,-1013.43948347,0.000129,2]
[347206211,1735572648184,-500.0,0.00012938,2]
[347206212,1735572648194,-500.0,0.0001315,2]
[347206213,1735572648204,-500.0,0.00013212,2]
[347206214,1735572648214,-500.0,0.00013424,2]
[347206215,1735572648225,-500.0,0.00013486,2]
[347206216,1735572648235,-500.0,0.00013698,2]
[347206217,1735572648246,-1089.37102553,0.00014,2]
[347206218,1735572694965,447.0,0.00025,120]
[347206222,1735572864299,500.0,0.00021322,120]
[347206233,1735573398023,424.99035148,9.631e-05,2]
[347206234,1735573398051,300.0,9.631e-05,2]
[347206236,1735573406878,617.35727252,9.535e-05,2]
[347206237,1735573422027,585.49915028,9.535e-05,2]
[347206238,1735573422054,31.85812224,9.535e-05,2]
[347206240,1735573591442,617.35727252,9.535e-05,2]
[347206271,1735573751425,-1396.83791999,9.936e-05,2]
[347206272,1735573751492,-1885.82134574,9.936e-05,2]
[347206275,1735573776930,-621.80514767,9.936e-05,2]
[347206276,1735573776956,-515.40076279,0.00010228,2]
[347206277,1735573776987,-1951.47453105,0.00010228,2]
[347206278,1735573800795,-1457.58911956,0.00010126,2]
[347206279,1735573800824,-300.0,0.00010857,2]
[347206280,1735573800850,-212.75428549,0.00010858,2]
[347206281,1735573800876,-42.90473483,0.00010858,2]
[347206282,1735573800911,-1626.49538777,0.00010858,2]
[347206333,1735573832179,-300.0,0.00010748,2]
[347206335,1735573832190,-300.0,0.00010857,2]
[347206337,1735573832200,-500.0,0.00010857,2]
[347206339,1735573832211,-500.0,0.00010857,2]
[347206341,1735573832221,-500.0,0.00010857,2]
[347206343,1735573832231,-500.0,0.00010857,2]
[347206345,1735573832241,-500.0,0.00010857,2]
[347206347,1735573832251,-350.3717414,0.00010857,2]
[347206349,1735573832261,-175.57260877,0.00010857,2]
[347206351,1735573832270,-500.0,0.00010857,2]
[347206353,1735573832280,-500.0,0.00010857,2]
[347206355,1735573832291,-500.0,0.00010857,2]
[347206357,1735573832301,-500.0,0.00010857,2]
[347206359,1735573832311,-394.61704675,0.00010857,2]
[347206361,1735573832321,-3164.43860308,0.00010858,2]
[347206363,1735573832333,-384.07,0.00010858,2]
[347206366,1735573832352,-600.0,0.00010858,2]
[347206368,1735573832365,-4788.19706837,0.00010858,2]
[347206458,1735573838133,-446.20833079,0.00010858,2]
[347206482,1735573838426,-10652.83559867,0.00010858,2]
[347206484,1735573838438,-8327.27914003,0.00010858,2]
[347206486,1735573838448,-178.91167338,0.00010858,2]
[347206488,1735573838458,-497.32272406,0.00010957,2]
[347206490,1735573838467,-522.48074656,0.00010958,2]
[347206491,1735573838482,-500.0,0.00010958,2]
[347206492,1735573838491,-224.13735021,0.00010958,2]